fUSD/lending_fUSD_20250120
["ID","MTS","AMOUNT","RATE_DAILY","PERIOD"]
[349707416,1737387051447,-500.0,0.00021365,2]
[349707417,1737387051456,-500.0,0.00021365,2]
[349707418,1737387051465,-500.0,0.00021365,2]
[349707419,1737387051474,-510.5,0.00021365,2]
[349707420,1737387051483,-500.0,0.00021369,2]
[349707421,1737387051493,-500.0,0.00021369,2]
[349707422,1737387051502,-500.0,0.00021369,2]
[349707423,1737387051512,-582.43,0.00021369,2]
[349707424,1737387051521,-500.0,0.00021369,2]
[349707425,1737387051531,-500.0,0.00021369,2]
[349707426,1737387051541,-500.43,0.00021369,2]
[349707427,1737387051550,-500.0,0.00021369,2]
[349707428,1737387051560,-638.77,0.00021369,2]
[349707429,1737387051571,-500.0,0.00021369,2]
[349707430,1737387051581,-500.0,0.00021369,2]
[349707431,1737387051590,-500.0,0.00021369,2]
[349707432,1737387051599,-500.0,0.00021369,2]
[349707433,1737387051608,-500.0,0.00021369,2]
[349707434,1737387051619,-1074.17,0.00021369,2]
[349707435,1737387051628,-500.0,0.00021369,2]
[349707436,1737387051638,-500.0,0.00021369,2]
[349707437,1737387051648,-880.88,0.00021369,2]
[349707438,1737387051658,-1083.52,0.00021369,2]
[349707439,1737387051667,-519.7,0.00021369,2]
[349707440,1737387051676,-217.0,0.0002139,2]
[349707441,1737387051685,-205.0,0.0002139,2]
[349707442,1737387051695,-201.82049282,0.000214,2]
[349707443,1737387051705,-500.0,0.00021452,2]
[349707444,1737387051715,-1881.32250258,0.00021493,2]
[349707445,1737387051726,-366.0,0.000215,2]
[349707446,1737387051735,-1000.0,0.000215,2]
[349707447,1737387051745,-231.0,0.000215,2]
[349707448,1737387051757,-153.80145118,0.000215,2]
[349707449,1737387051767,-166.66,0.00021522,2]
[349707450,1737387051778,-574.7955305,0.0002156,2]
[349707451,1737387051787,-1653.9137979,0.00021607,2]
[349707452,1737387051796,-686.25,0.00021611,2]
[349707453,1737387051807,-176.03,0.00021616,2]
[349707454,1737387051820,-504.79082918,0.00021638,2]
[349707455,1737387051829,-500.0,0.00021638,7]
[349707456,1737387051839,-500.0,0.00021638,2]
[349707457,1737387051849,-317.73925839,0.00021638,2]
[349707458,1737387051858,-549.84,0.00021638,2]
[349707459,1737387051867,-1013.07,0.00021638,2]
[349707460,1737387051877,-500.0,0.00021638,2]
[349707461,1737387051887,-500.0,0.00021638,2]
[349707462,1737387051899,-529.42,0.00021638,2]
[349707463,1737387051909,-878.15,0.00021638,2]
[349707464,1737387051918,-1093.26,0.00021638,2]
[349707465,1737387051929,-769.79,0.00021638,2]
[349707466,1737387051939,-1216.77,0.00021638,2]
[349707467,1737387051948,-378.586787,0.00021638,2]
[349707468,1737387051957,-1078.19,0.00021638,2]
[349707469,1737387051967,-504.21,0.00021638,2]
[349707470,1737387051976,-317.394868,0.00021638,2]
[349707471,1737387051986,-1043.08,0.00021638,2]
[349707472,1737387051995,-697.96,0.00021638,2]
[349707473,1737387052005,-500.0,0.00021638,2]
[349707474,1737387052015,-556.1,0.00021638,2]
[349707475,1737387052024,-635.53,0.00021638,2]
[349707476,1737387052033,-1033.13,0.00021638,2]
[349707477,1737387052043,-985.24,0.00021638,2]
[349707478,1737387052051,-151.434714,0.00021638,2]
[349707479,1737387052064,-500.0,0.00021638,2]
[349707480,1737387052074,-500.0,0.00021638,2]
[349707481,1737387052084,-579.3,0.00021638,2]
[349707482,1737387052093,-527.43,0.00021638,2]
[349707483,1737387052102,-500.0,0.00021638,2]
[349707484,1737387052112,-801.93,0.00021638,2]
[349707485,1737387052121,-500.0,0.00021638,2]
[349707486,1737387052129,-500.0,0.00021638,2]
[349707487,1737387052138,-802.76,0.00021638,2]
[349707488,1737387052148,-1243.66,0.00021638,2]
[349707489,1737387052158,-1602.28,0.00021638,2]
[349707490,1737387052167,-1125.71,0.00021638,2]
[349707491,1737387052176,-538.66,0.00021638,2]
[349707492,1737387052185,-500.0,0.00021639,2]
[349707493,1737387052195,-641.0,0.00021639,2]
[349707494,1737387052204,-500.0,0.00021639,2]
[349707495,1737387052213,-500.0,0.00021639,2]
[349707496,1737387052222,-500.0,0.00021639,2]
[349707497,1737387052231,-466.14455713,0.00021639,2]
[349707498,1737387052241,-500.0,0.00021639,2]
[349707499,1737387052250,-500.0,0.00021639,2]
[349707500,1737387052259,-390.42237034,0.00021639,2]
[349707501,1737387052269,-500.0,0.00021639,2]
[349707502,1737387052278,-500.0,0.00021639,2]
[349707503,1737387052288,-500.0,0.00021639,2]
[349707504,1737387052298,-500.0,0.00021639,2]
[349707505,1737387052311,-500.0,0.00021639,2]
[349707506,1737387052324,-548.92,0.00021639,2]
[349707507,1737387052333,-500.0,0.00021639,2]
[349707508,1737387052343,-500.0,0.00021639,2]
[349707509,1737387052353,-500.0,0.00021639,2]
[349707510,1737387052362,-500.0,0.00021639,2]
[349707511,1737387052371,-500.0,0.00021639,2]
[349707512,1737387052380,-500.0,0.00021639,2]
[349707513,1737387052390,-500.0,0.00021639,2]
[349707514,1737387052399,-500.0,0.00021639,2]
[349707515,1737387052409,-500.0,0.00021639,2]
[349707516,1737387052418,-500.0,0.00021639,2]
[349707517,1737387052428,-510.01,0.00021639,2]
[349707518,1737387052438,-520.24,0.00021639,2]
[349707519,1737387052447,-580.92,0.00021639,2]
[349707520,1737387052456,-500.0,0.00021639,2]
[349707521,1737387052465,-500.0,0.00021639,2]
[349707522,1737387052475,-500.0,0.00021639,2]
[349707523,1737387052485,-168.43607116,0.00021639,2]
[349707524,1737387052494,-531.16,0.00021639,2]
[349707525,1737387052503,-500.0,0.00021639,2]
[349707526,1737387052513,-500.0,0.00021639,2]
[349707527,1737387052522,-500.0,0.00021639,2]
[349707528,1737387052533,-500.0,0.00021639,2]
[349707529,1737387052543,-1171.06,0.00021639,2]
[349707530,1737387052552,-500.0,0.00021639,2]
[349707531,1737387052561,-500.0,0.00021639,2]
[349707532,1737387052578,-500.0,0.00021639,2]
[349707533,1737387052587,-540.33,0.00021639,2]
[349707534,1737387052597,-500.0,0.00021639,2]
[349707535,1737387052606,-503.02,0.00021639,2]
[349707536,1737387052616,-500.0,0.00021639,2]
[349707537,1737387052625,-1031.56,0.00021639,2]
[349707538,1737387052635,-1761.81,0.00021639,2]
[349707539,1737387052644,-500.0,0.00021639,2]
[349707540,1737387052653,-500.0,0.00021639,2]
[349707541,1737387052663,-500.0,0.00021639,2]
[349707542,1737387052672,-500.0,0.00021639,2]
[349707543,1737387052681,-917.68,0.00021639,2]
[349707544,1737387052691,-500.0,0.00021639,2]
[349707545,1737387052700,-500.0,0.00021639,2]
[349707546,1737387052709,-258.88372831,0.00021639,2]
[349707547,1737387052719,-510.5,0.00021639,2]
[349707548,1737387052728,-500.0,0.00021643,2]
[349707549,1737387052738,-500.0,0.00021643,2]
[349707550,1737387052748,-500.0,0.00021643,2]
[349707551,1737387052758,-582.43,0.00021643,2]
[349707552,1737387052768,-500.0,0.00021643,2]
[349707553,1737387052777,-500.0,0.00021643,2]
[349707554,1737387052788,-500.43,0.00021643,2]
[349707555,1737387052797,-500.0,0.00021643,2]
[349707556,1737387052807,-638.77,0.00021643,2]
[349707557,1737387052820,-500.0,0.00021643,2]
[349707558,1737387052830,-500.0,0.00021643,2]
[349707559,1737387052840,-500.0,0.00021643,2]
[349707560,1737387052850,-500.0,0.00021643,2]
[349707561,1737387052859,-500.0,0.00021643,2]
[349707562,1737387052869,-1074.17,0.00021643,2]
[349707563,1737387052879,-500.0,0.00021643,2]
[349707564,1737387052889,-500.0,0.00021643,2]
[349707565,1737387052903,-880.88,0.00021643,2]
[349707566,1737387052913,-1083.52,0.00021643,2]
[349707567,1737387052922,-519.7,0.00021643,2]
[349707568,1737387052932,-201.82049282,0.0002165,3]
[349707569,1737387052943,-42613.0,0.00021653,2]
[349707570,1737387052952,-264.0,0.0002168,7]
[349707571,1737387052961,-1881.32250258,0.00021697,2]
[349707572,1737387052971,-217.0,0.000217,2]
[349707573,1737387052980,-179.04415022,0.000217,2]
[349707574,1737387052990,-229.05081253,0.000217,2]
[349707575,1737387052999,-205.0,0.000217,2]
[349707576,1737387053009,-1724.0,0.00021731,2]
[349707577,1737387053019,-150.0,0.00021735,2]
[349707578,1737387053028,-150.0,0.00021756,2]
[349707579,1737387053038,-150.0,0.00021762,2]
[349707580,1737387053047,-150.0,0.00021767,2]
[349707581,1737387053057,-317.71261593,0.00021776,2]
[349707582,1737387053070,-161.98505458,0.0002178,2]
[349707583,1737387053079,-150.0,0.00021782,2]
[349707584,1737387053089,-150.0,0.00021784,2]
[349707585,1737387053099,-150.0,0.00021796,2]
[349707586,1737387053109,-1000.0,0.00021796,2]
[349707587,1737387053119,-47762.36576115,0.000218,2]
[349707588,1737387053128,-187.897297,0.000218,2]
[349707589,1737387053138,-150.0,0.00021801,2]
[349707590,1737387053147,-150.0,0.0002181,2]
[349707591,1737387053156,-150.0,0.00021812,2]
[349707592,1737387053166,-150.0,0.00021818,2]
[349707593,1737387053175,-3184.21010919,0.00021821,2]
[349707594,1737387053184,-500.0,0.00021824,2]
[349707595,1737387053193,-150.0,0.00021825,2]
[349707596,1737387053203,-200.47,0.00021837,2]
[349707597,1737387053212,-150.0,0.00021839,2]
[349707598,1737387053221,-150.0,0.00021858,2]
[349707599,1737387053231,-150.0,0.00021869,2]
[349707600,1737387053240,-150.0,0.00021872,2]
[349707601,1737387053249,-2000.0,0.0002189,2]
[349707602,1737387053258,-2000.0,0.0002189,2]
[349707603,1737387053267,-1000.0,0.0002189,2]
[349707604,1737387053277,-1000.0,0.0002189,2]
[349707605,1737387053286,-1000.0,0.0002189,2]
[349707606,1737387053295,-1000.0,0.0002189,2]
[349707607,1737387053304,-1000.0,0.0002189,2]
[349707608,1737387053315,-1000.0,0.0002189,2]
[349707609,1737387053324,-1000.0,0.0002189,2]
[349707610,1737387053334,-1000.0,0.0002189,2]
[349707611,1737387053343,-1000.0,0.0002189,2]
[349707612,1737387053353,-1000.0,0.0002189,2]
[349707613,1737387053363,-1000.0,0.0002189,2]
[349707614,1737387053373,-500.0,0.0002189,2]
[349707615,1737387053382,-150.0,0.00021896,2]
[349707616,1737387053391,-150.0,0.00021897,2]
[349707617,1737387053400,-881.03940922,0.000219,2]
[349707618,1737387053410,-187.7062275,0.000219,2]
[349707619,1737387053419,-150.0,0.000219,2]
[349707620,1737387053429,-1881.32250258,0.000219,2]
[349707621,1737387053438,-201.82049282,0.000219,3]
[349707622,1737387053447,-153.80145118,0.000219,2]
[349707623,1737387053456,-150.0,0.00021908,2]
[349707624,1737387053465,-500.0,0.00021912,7]
[349707625,1737387053474,-500.0,0.00021912,2]
[349707626,1737387053484,-549.84,0.00021912,2]
[349707627,1737387053494,-1013.07,0.00021912,2]
[349707628,1737387053503,-553.02741727,0.00021912,2]
[349707629,1737387053512,-500.0,0.00021912,2]
[349707630,1737387053521,-529.42,0.00021912,2]
[349707631,1737387053532,-878.15,0.00021912,2]
[349707632,1737387053541,-1093.26,0.00021912,2]
[349707633,1737387053550,-769.79,0.00021912,2]
[349707634,1737387053559,-1216.77,0.00021912,2]
[349707635,1737387053572,-1078.19,0.00021912,2]
[349707636,1737387053582,-317.394868,0.00021912,2]
[349707637,1737387053591,-1043.08,0.00021912,2]
[349707638,1737387053600,-697.96,0.00021912,2]
[349707639,1737387053610,-500.0,0.00021912,2]
[349707640,1737387053619,-556.1,0.00021912,2]
[349707641,1737387053629,-635.53,0.00021912,2]
[349707642,1737387053638,-1033.13,0.00021912,2]
[349707643,1737387053648,-985.24,0.00021912,2]
[349707644,1737387053799,-151.434714,0.00021912,2]
[349707645,1737387053816,-500.0,0.00021912,2]
[349707646,1737387053826,-500.0,0.00021912,2]
[349707647,1737387053835,-579.3,0.00021912,2]
[349707648,1737387053845,-527.43,0.00021912,2]
[349707649,1737387053854,-500.0,0.00021912,2]
[349707650,1737387053864,-801.93,0.00021912,2]
[349707651,1737387053874,-500.0,0.00021912,2]
[349707652,1737387053883,-386.62110851,0.00021912,2]
[349707653,1737387053894,-802.76,0.00021912,2]
[349707654,1737387053904,-1243.66,0.00021912,2]
[349707655,1737387053914,-1602.28,0.00021912,2]
[349707656,1737387053925,-1125.71,0.00021912,2]
[349707657,1737387053934,-538.66,0.00021912,2]
[349707658,1737387053944,-500.0,0.00021913,2]
[349707659,1737387053953,-641.0,0.00021913,2]
[349707660,1737387053963,-500.0,0.00021913,2]
[349707661,1737387053973,-500.0,0.00021913,2]
[349707662,1737387053982,-500.0,0.00021913,2]
[349707663,1737387053992,-500.0,0.00021913,2]
[349707664,1737387054004,-500.0,0.00021913,2]
[349707665,1737387054015,-500.0,0.00021913,2]
[349707666,1737387054024,-500.0,0.00021913,2]
[349707667,1737387054034,-500.0,0.00021913,2]
[349707668,1737387054044,-500.0,0.00021913,2]
[349707669,1737387054053,-500.0,0.00021913,2]
[349707670,1737387054063,-548.92,0.00021913,2]
[349707671,1737387054075,-500.0,0.00021913,2]
[349707672,1737387054085,-500.0,0.00021913,2]
[349707673,1737387054095,-500.0,0.00021913,2]
[349707674,1737387054105,-500.0,0.00021913,2]
[349707675,1737387054115,-500.0,0.00021913,2]
[349707676,1737387054124,-500.0,0.00021913,2]
[349707677,1737387054134,-500.0,0.00021913,2]
[349707678,1737387054143,-500.0,0.00021913,2]
[349707679,1737387054152,-500.0,0.00021913,2]
[349707680,1737387054163,-500.0,0.00021913,2]
[349707681,1737387054172,-510.01,0.00021913,2]
[349707682,1737387054181,-520.24,0.00021913,2]
[349707683,1737387054191,-580.92,0.00021913,2]
[349707684,1737387054200,-500.0,0.00021913,2]
[349707685,1737387054210,-500.0,0.00021913,2]
[349707686,1737387054220,-313.37563489,0.00021913,2]
[349707687,1737387054229,-531.16,0.00021913,2]
[349707688,1737387054239,-500.0,0.00021913,2]
[349707689,1737387054249,-500.0,0.00021913,2]
[349707690,1737387054258,-500.0,0.00021913,2]
[349707691,1737387054268,-500.0,0.00021913,2]
[349707692,1737387054277,-1171.06,0.00021913,2]
[349707693,1737387054287,-500.0,0.00021913,2]
[349707694,1737387054297,-500.0,0.00021913,2]
[349707695,1737387054306,-540.33,0.00021913,2]
[349707696,1737387054316,-500.0,0.00021913,2]
[349707697,1737387054326,-503.02,0.00021913,2]
[349707698,1737387054335,-500.0,0.00021913,2]
[349707699,1737387054345,-1031.56,0.00021913,2]
[349707700,1737387054354,-1761.81,0.00021913,2]
[349707701,1737387054364,-500.0,0.00021913,2]
[349707702,1737387054374,-500.0,0.00021913,2]
[349707703,1737387054383,-500.0,0.00021913,2]
[349707704,1737387054393,-571.78622056,0.00021913,2]
[349707705,1737387054402,-917.68,0.00021913,2]
[349707706,1737387054412,-500.0,0.00021913,2]
[349707707,1737387054421,-500.0,0.00021913,2]
[349707708,1737387054430,-510.5,0.00021913,2]
[349707709,1737387054440,-500.0,0.00021914,2]
[349707710,1737387054449,-150.10418236,0.00021914,2]
[349707711,1737387054459,-150.0,0.00021914,2]
[349707712,1737387054468,-500.0,0.00021917,2]
[349707713,1737387054478,-500.0,0.00021917,2]
[349707714,1737387054487,-500.0,0.00021917,2]
[349707715,1737387054497,-582.43,0.00021917,2]
[349707716,1737387054506,-500.0,0.00021917,2]
[349707717,1737387054516,-500.0,0.00021917,2]
[349707718,1737387054526,-500.43,0.00021917,2]
[349707719,1737387054538,-500.0,0.00021917,2]
[349707720,1737387054548,-638.77,0.00021917,2]
[349707721,1737387054558,-500.0,0.00021917,2]
[349707722,1737387054571,-500.0,0.00021917,2]
[349707723,1737387054581,-500.0,0.00021917,2]
[349707724,1737387054592,-500.0,0.00021917,2]
[349707725,1737387054602,-500.0,0.00021917,2]
[349707726,1737387054611,-1074.17,0.00021917,2]
[349707727,1737387054622,-500.0,0.00021917,2]
[349707728,1737387054632,-500.0,0.00021917,2]
[349707729,1737387054643,-880.88,0.00021917,2]
[349707730,1737387054654,-1083.52,0.00021917,2]
[349707731,1737387054665,-534.61084197,0.00021917,2]
[349707732,1737387054676,-519.7,0.00021917,2]
[349707733,1737387054686,-150.0,0.00021918,2]
[349707734,1737387054696,-1000.0,0.00021922,2]
[349707735,1737387054707,-500.0,0.00021925,2]
[349707736,1737387054717,-150.0,0.00021937,2]
[349707737,1737387054726,-649.70320795,0.00021941,2]
[349707738,1737387054737,-150.0,0.00021941,2]
[349707739,1737387054747,-500.0,0.00021942,2]
[349707740,1737387054756,-500.9,0.00021942,2]
[349707741,1737387054766,-500.0,0.00021942,2]
[349707742,1737387054775,-150.0,0.00021944,2]
[349707743,1737387054786,-201.44,0.00021946,2]
[349707744,1737387054796,-5025.810264,0.00021966,2]
[349707745,1737387054805,-5000.0,0.00021966,2]
[349707746,1737387054817,-200.0,0.00021969,2]
[349707747,1737387054827,-500.0,0.0002197,2]
[349707748,1737387054837,-500.0,0.0002197,2]
[349707749,1737387054846,-500.0,0.0002197,2]
[349707750,1737387054856,-500.0,0.0002197,2]
[349707751,1737387054866,-800.0,0.0002197,2]
[349707752,1737387054876,-700.0,0.0002197,2]
[349707753,1737387054886,-700.0,0.0002197,2]
[349707754,1737387054899,-700.0,0.0002197,2]
[349707755,1737387054908,-700.0,0.0002197,2]
[349707756,1737387054919,-700.0,0.0002197,2]
[349707757,1737387054928,-700.0,0.0002197,2]
[349707758,1737387054940,-700.0,0.0002197,2]
[349707759,1737387054950,-750.0,0.0002197,2]
[349707760,1737387054959,-150.0,0.00021973,4]
[349707761,1737387054969,-203.66122748,0.00021973,4]
[349707762,1737387054979,-151.88316296,0.00021973,2]
[349707763,1737387054989,-150.0,0.00021982,2]
[349707764,1737387054999,-3379.02118857,0.0002199,30]
[349707765,1737387055008,-150.0,0.00021994,2]
[349707766,1737387055018,-6034.09719151,0.00021996,2]
[349707767,1737387055027,-2000.0,0.00021999,2]
[349707768,1737387055036,-2000.0,0.00021999,2]
[349707769,1737387055046,-2000.0,0.00021999,2]
[349707770,1737387055055,-2000.0,0.00021999,2]
[349707771,1737387055067,-2000.0,0.00021999,2]
[349707772,1737387055077,-500.0,0.00021999,2]
[349707773,1737387055087,-107689.58622572,0.00022,2]
[349707774,1737387055097,-1219.23042049,0.00022,2]
[349707775,1737387055106,-2553148.44689843,0.00022,2]
[349707776,1737387055117,-250.000001,0.00022,2]
[349707777,1737387055126,-2840232.89817346,0.00022,2]
[349707778,1737387055282,-26748.79524,0.00022,2]
[349707779,1737387055310,-747.13,0.0002109,2]
[349707780,1737387055325,-9951.8628657,0.00022,2]
[349707781,1737387055418,150.0,0.00012,2]
[349707782,1737387055516,-500.0,0.00019999,2]
[349707783,1737387055526,-476.94,0.00019999,2]
[349707784,1737387055536,-511.03830902,0.00019999,2]
[349707785,1737387055545,-150.482952,0.00020268,2]
[349707786,1737387055555,-500.0,0.0002109,2]
[349707787,1737387055569,-1175.0,0.00021338,2]
[349707788,1737387055579,-747.13,0.00021364,2]
[349707789,1737387055588,-500.0,0.00021364,2]
[349707790,1737387055598,-747.13,0.00021638,2]
[349707791,1737387055608,-500.0,0.00021638,2]
[349707792,1737387055618,-747.13,0.00021912,2]
[349707793,1737387055627,-500.0,0.00021912,2]
[349707794,1737387055636,-7997.71199752,0.00022,2]
[349707795,1737387055648,-9895.71502072,0.00022,2]
[349707796,1737387055659,-5356.191,0.00022,2]
[349707797,1737387055671,-12747.99036563,0.00022,2]
[349707798,1737387055681,-691.902747,0.00022,2]
[349707799,1737387055697,-150.482952,0.00020542,2]
[349707800,1737387055706,-1788.1989214,0.00022,2]
[349707801,1737387055717,-1840.74008401,0.00022,2]
[349707802,1737387055735,-25008.17307602,0.00022,2]
[349707803,1737387055746,-9951.2,0.00022,2]
[349707804,1737387055761,-40329.39999996,0.00022,2]
[349707805,1737387055772,-53452.19357,0.00022,2]
[349707806,1737387055784,-325001.1189582,0.00022,2]
[349707807,1737387055799,-272898.73568406,0.00022,2]
[349707808,1737387055810,-1259572.55584881,0.00022,2]
[349707809,1737387056135,-1000.0,0.000199,2]
[349707810,1737387056145,-500.0,0.00019999,2]
[349707811,1737387056154,-500.0,0.00019999,2]
[349707812,1737387056163,-380.78161619,0.00020273,2]
[349707813,1737387056172,-500.0,0.00020542,2]
[349707814,1737387056182,-150.482952,0.00020816,2]
[349707815,1737387056191,-150.482952,0.0002109,2]
[349707816,1737387056200,-150.482952,0.00021364,2]
[349707817,1737387056209,-150.482952,0.00021638,2]
[349707818,1737387056219,-150.482952,0.00021912,2]
[349707819,1737387056228,-17856.56339583,0.00022,2]
[349707820,1737387056251,-250.00187611,0.00019999,2]
[349707821,1737387056260,-4748.41134389,0.00022,2]
[349707822,1737387056271,-3305.79525,0.00022,2]
[349707823,1737387092360,3352.31728729,0.00013781,7]
[349707824,1737387588259,184.42,0.00010137,2]
[349707856,1737388231689,-201.46,0.00012329,2]
[349707857,1737388231699,-1157.16712843,0.00016262,2]
[349707858,1737388231711,-2637.74370373,0.00016262,2]
[349707859,1737388231720,-358.3562963,0.00016362,2]
[349707860,1737388231730,-957.48,0.00016462,2]
[349707861,1737388231744,-1335.91999997,0.00017,3]
[349707862,1737388231792,-1017.80115467,0.00017,3]
[349707863,1737388231827,-412.4449995,0.00017,3]
[349707864,1737388231838,-580.83384586,0.00017,3]
[349707865,1737388231848,-5559.0,0.000175,5]
[349707866,1737388231858,-300.0,0.00017599,2]
[349707867,1737388231867,-200.0,0.0001814,2]
[349707868,1737388231877,-177.53,0.00018143,2]
[349707869,1737388231887,-600.0,0.00018164,2]
[349707870,1737388231896,-500.0,0.00018164,2]
[349707871,1737388231906,-189.8,0.00018181,2]
[349707872,1737388231915,-150.0,0.000183,2]
[349707873,1737388231925,-150.0,0.0001833,2]
[349707874,1737388231934,-23338.83615414,0.00018331,2]
[349707875,1737388232099,-6592.1000172,0.00018331,2]
[349707878,1737388232111,-1059.058,0.00018331,2]
[349707880,1737388232123,-821.95448415,0.00018331,2]
[349707882,1737388232134,-2996.10000003,0.00018331,2]
[349708375,1737388237478,-2737.11446961,0.00018331,2]
[349708405,1737388237784,-347.92677204,0.00018331,2]
[349708407,1737388237796,-7154.75010283,0.00018331,2]
[349708409,1737388237806,-566.18,0.00018544,2]
[349708411,1737388237816,-150.0,0.00018658,2]
[349708413,1737388237826,-183.06,0.00018695,2]
[349708415,1737388237836,-957.48,0.00018726,2]
[349708417,1737388237845,-1500.0,0.0001875,2]
[349708419,1737388237855,-200.0,0.00018821,2]
[349708421,1737388237864,-174.95,0.00018821,2]
[349708423,1737388237874,-241.91,0.00018821,2]
[349708425,1737388237883,-250.0,0.00018821,2]
[349708427,1737388237893,-250.0,0.00018885,2]
[349708429,1737388237903,-1258.77799719,0.00019,2]
[349708431,1737388237915,-712.22200281,0.00019,2]
[349708433,1737388237924,-503.0,0.00019096,2]
[349708436,1737388237934,-184.93,0.00019148,2]
[349708437,1737388237943,-3816.43,0.00019152,2]
[349708439,1737388237953,-1000.0,0.00019183,2]
[349708441,1737388237963,-420.0,0.0001921,2]
[349708443,1737388237972,-8860.21210099,0.00019211,2]
[349708446,1737388237987,-846.03143429,0.00019211,2]
[349708450,1737388238010,-92714.75646472,0.00019211,2]
[349708452,1737388238024,-317.1,0.00019249,2]
[349708454,1737388238033,-600.0,0.0001926,2]
[349708456,1737388238042,-295.18,0.00019273,30]
[349708458,1737388238051,-151.0,0.00019391,2]
[349708460,1737388238060,-250.0,0.00019444,2]
[349708462,1737388238069,-189.8,0.00019527,2]
[349708464,1737388238079,-2500.0,0.000198,2]
[349708466,1737388238088,-170.34,0.0001989,2]
[349708468,1737388238098,-1446.03947721,0.00019898,2]
[349708470,1737388238107,-8174.1399,0.00019899,2]
[349708472,1737388238116,-5000.0,0.00019899,2]
[349708474,1737388238125,-55555.0,0.00019899,2]
[349708476,1737388238134,-771.577,0.00019899,2]
[349708478,1737388238144,-163.04738686,0.00019899,2]
[349708480,1737388238153,-500.0,0.00019899,2]
[349708482,1737388238162,-500.0,0.00019899,2]
[349708484,1737388238171,-500.0,0.00019899,2]
[349708486,1737388238182,-500.0,0.00019899,2]
[349708488,1737388238191,-500.0,0.00019899,2]
[349708490,1737388238201,-500.0,0.00019899,2]
[349708492,1737388238210,-500.0,0.00019899,2]
[349708494,1737388238220,-500.0,0.00019899,2]
[349708496,1737388238230,-500.0,0.00019899,2]
[349708498,1737388238239,-878.85,0.00019899,2]
[349708500,1737388238249,-500.0,0.00019899,2]
[349708502,1737388238264,-500.0,0.00019899,2]
[349708504,1737388238276,-500.0,0.00019899,2]
[349708506,1737388238286,-583.97,0.00019899,2]
[349708508,1737388238295,-500.0,0.00019899,2]
[349708510,1737388238304,-500.0,0.00019899,2]
[349708511,1737388238313,-500.0,0.00019899,2]
[349708514,1737388238323,-24109.5548,0.000199,2]
[349708516,1737388238334,-36134.184,0.000199,2]
[349708518,1737388238344,-500.0,0.000199,2]
[349708520,1737388238353,-583.4647,0.000199,2]
[349708522,1737388238363,-930.9414,0.000199,2]
[349708523,1737388238372,-388.18052549,0.000199,2]
[349708525,1737388238381,-183.06,0.00019941,2]
[349708527,1737388238390,-388.1805252,0.00019969,2]
[349708529,1737388238399,-500.0,0.00019973,2]
[349708531,1737388238408,-170.34,0.00019988,2]
[349708533,1737388238419,-170.34,0.00019988,2]
[349708535,1737388238428,-170.34,0.00019989,2]
[349708537,1737388238438,-162.42,0.00019997,2]
[349708539,1737388238447,-624.68076286,0.00019997,2]